fUSD/lending_fUSD_20250809
["ID","MTS","AMOUNT","RATE_DAILY","PERIOD"]
[378094377,1754725992450,340.95517583,0.00017714,2]
[378094378,1754725993372,384.74758373,0.00017793,2]
[378094379,1754725993464,428.53999164,0.00017873,2]
[378094380,1754725993553,154.4,0.00013699,2]
[378094381,1754725993581,472.33239954,0.00017952,2]
[378094382,1754725993887,516.12480744,0.00018032,2]
[378094383,1754725994142,559.91721535,0.00018111,2]
[378094384,1754725994473,297.16276792,0.00017634,2]
[378094385,1754725994916,647.50203116,0.0001827,2]
[378094386,1754725995259,691.29443906,0.00018349,2]
[378094387,1754725995756,735.08684697,0.00018429,2]
[378094390,1754726011500,261.43,0.00015068,2]
[378094391,1754726011680,261.43,0.00016691,2]
[378094392,1754726011899,261.43,0.00018314,2]
[378094395,1754726016173,6274.87,0.00018475,2]
[378094396,1754726172732,170.0,0.00018246,7]
[378094398,1754726187677,250.0,0.00015,2]
[378094402,1754726205975,521.0,0.0001783,2]
[378094404,1754726213943,1000.0,0.00018269,2]
[378094408,1754726248321,154.09,0.00018224,2]
[378094410,1754726293519,200.23528658,0.00018133,2]
[378094412,1754726313344,150.0,0.00017475,2]
[378094413,1754726313417,566.54044537,0.00018111,2]
[378094414,1754726313708,300.67789,0.00017634,2]
[378094415,1754726314043,344.9883159,0.00017714,2]
[378094416,1754726314377,389.29874179,0.00017793,2]
[378094417,1754726314786,433.60916769,0.00017873,2]
[378094418,1754726315115,477.91959358,0.00017952,2]
[378094419,1754726315498,522.23001948,0.00018032,2]
[378094420,1754726315888,256.36746411,0.00017555,2]
[378094421,1754726316110,610.85087127,0.00018191,2]
[378094422,1754726316622,699.47172306,0.00018349,2]
[378094423,1754726316966,655.16129716,0.0001827,2]
[378094424,1754726317291,743.78214895,0.00018429,2]
[378094426,1754726364365,206.0,0.000185,2]
[378094427,1754726374198,182.9,0.0001811,2]
[378094431,1754726430030,-788.09257485,0.00018508,2]
[378094432,1754726430055,-832.40300074,0.00018588,2]
[378094435,1754726449056,195.08,0.00018227,2]
[378094460,1754726628941,150.0,0.00017475,2]
[378094461,1754726629207,394.53128173,0.00017555,2]
[378094462,1754726629551,462.72187363,0.00017634,2]
[378094463,1754726629643,3348.74792532,0.000186,2]
[378094464,1754726629827,530.91246554,0.00017714,2]
[378094465,1754726629884,180.29266792,0.000186,2]
[378094466,1754726629914,208.61663813,0.000186,2]
[378094467,1754726630183,599.10305744,0.00017793,2]
[378094468,1754726630541,667.29364935,0.00017873,2]
[378094469,1754726630888,735.48424125,0.00017952,2]
[378094470,1754726631241,803.67483315,0.00018032,2]
[378094471,1754726631569,871.86542506,0.00018111,2]
[378094472,1754726632262,1008.24660887,0.0001827,2]
[378094473,1754726632534,1076.43720077,0.00018349,2]
[378094474,1754726632862,1144.62779267,0.00018429,2]
[378094475,1754726633194,1212.81838458,0.00018508,2]
[378094476,1754726633519,1281.00897648,0.00018588,2]
[378094477,1754726634318,940.05601696,0.00018191,2]
[378094479,1754726692114,28382.84,0.00018448,2]
[378094491,1754726894199,392.96,0.00018266,2]
[378094494,1754726897868,202.0,0.000175,2]
[378094495,1754726921552,151.0,0.00018261,2]
[378094496,1754726925805,521.0,0.00018173,2]
[378094500,1754726938081,151.0,0.00018259,2]
[378094505,1754726964132,150.15,0.00013699,2]
[378094518,1754727032217,-285.498,0.00018607,2]
[378094519,1754727032227,-659.44843678,0.00018667,2]
[378094522,1754727032904,-505.0,0.00018667,2]
[378094523,1754727032916,-184.7511316,0.00018667,2]
[378094524,1754727032926,-198.0,0.0001868,2]
[378094525,1754727032935,-1096.2812416,0.00018747,2]
[378094526,1754727032947,-321.10891869,0.00018747,2]
[378094527,1754727032957,-152.681435,0.00018757,2]
[378094528,1754727032968,-231.882192,0.00018757,2]
[378094529,1754727032977,-152.681435,0.00018771,2]
[378094530,1754727032987,-231.882192,0.00018771,2]
[378094531,1754727032998,-168.38861826,0.0001881,2]
[378094532,1754727033010,-111.06973174,0.0001881,2]
[378094533,1754727033020,-279.45836,0.0001881,2]
[378094534,1754727033029,-112.39139546,0.0001881,2]
[378094535,1754727033139,-165.36129804,0.00018667,2]
[378094536,1754727033148,-185.52782575,0.00018667,2]
[378094537,1754727033158,-167.06696454,0.0001881,2]
[378094538,1754727033169,-108.56674167,0.00018826,2]
[378094539,1754727033182,-1377.01401052,0.00018826,2]
[378094540,1754727033191,-1200.0,0.00018894,2]
[378094541,1754727033201,-300.0,0.00018894,2]
[378094542,1754727033211,-1557.65249937,0.00018895,2]
[378094543,1754727033220,-226.0,0.00018897,2]
[378094544,1754727033230,-300.0,0.00018897,2]
[378094545,1754727033239,-1200.0,0.00018898,2]
[378094546,1754727033248,-1388.10259161,0.000189,2]
[378094547,1754727033258,-319.18326575,0.000189,2]
[378094548,1754727033267,-1553.7713441,0.00018906,2]
[378094549,1754727033277,-152.681435,0.00018937,2]
[378094550,1754727033288,-231.882192,0.00018937,2]
[378094551,1754727033298,-152.681435,0.00018938,2]
[378094552,1754727033308,-231.882192,0.00018938,2]
[378094553,1754727033317,-231.882192,0.00018943,2]
[378094554,1754727033326,-168.25,0.00018969,2]
[378094555,1754727033338,-159.775808,0.00018973,2]
[378094556,1754727033348,-302.66771322,0.00018984,2]
[378094557,1754727033358,-500.0,0.00018984,2]
[378094558,1754727033367,-21.33366975,0.00018984,2]
[378094559,1754727033380,-578.66633025,0.00018984,2]
[378094560,1754727033391,-500.0,0.00018984,2]
[378094561,1754727033405,-375.15703933,0.00018984,2]
[378094562,1754727033423,-1621.961936,0.00018985,2]
[378094563,1754727033433,-306.47636121,0.00018994,2]
[378094564,1754727033444,-152.069232,0.00018995,2]
[378094565,1754727033458,-3810.6461414,0.00018995,2]
[378094566,1754727033471,-552.805001,0.00018995,2]
[378094567,1754727033498,-410.2627357,0.00018995,2]
[378094568,1754727033510,-1835.59888007,0.00018995,2]
[378094569,1754727033526,-6049.43917703,0.00018995,2]
[378094570,1754727033535,-2554.2958358,0.00018995,2]
[378094571,1754727033546,-110056.7060137,0.00018995,2]
[378094572,1754727033556,-151.0,0.00018995,2]
[378094573,1754727033565,-87386.0859152,0.00018995,2]
[378094574,1754727033575,-151.0,0.00018995,2]
[378094575,1754727033584,-72453.8961001,0.00018995,2]
[378094576,1754727033593,-50785.0886298,0.00018995,2]
[378094577,1754727033603,-179.346088,0.00018995,2]
[378094578,1754727033616,-179.346088,0.00018995,2]
[378094579,1754727033627,-1000.0,0.00019,2]
[378094580,1754727033637,-81975.20922786,0.00019,2]
[378094581,1754727033647,-151.0,0.00019,2]
[378094582,1754727033664,-810.81644,0.00019,2]
[378094583,1754727033674,-810.81644,0.00019,2]
[378094584,1754727033684,-279.45836,0.00019,2]
[378094585,1754727033695,-279.45836,0.00019,2]
[378094586,1754727033704,-279.45836,0.00019,2]
[378094587,1754727033714,-151.0,0.00019,2]
[378094588,1754727033724,-151.0,0.00019,2]
[378094589,1754727033734,-555.775858,0.00019,2]
[378094590,1754727033743,-555.775858,0.00019,2]
[378094591,1754727033752,-1184.897645,0.00019,2]
[378094592,1754727033762,-1184.897645,0.00019,2]
[378094593,1754727033772,-172.020687,0.00019,2]
[378094594,1754727033781,-151.0,0.00019,2]
[378094595,1754727033790,-172.020687,0.00019,2]
[378094596,1754727033801,-151.0,0.00019,2]
[378094597,1754727033813,-151.0,0.00019,2]
[378094598,1754727033822,-179.346088,0.00019,2]
[378094599,1754727033832,-151.0,0.00019,2]
[378094600,1754727033842,-179.346088,0.00019,2]
[378094601,1754727033852,-151.44,0.00019008,2]
[378094602,1754727033861,-151.44,0.00019035,2]
[378094603,1754727033871,-2490.73103732,0.00019096,2]
[378094604,1754727033887,-4746.25963789,0.00019096,2]
[378094605,1754727033898,-151.0,0.00019178,2]
[378094606,1754727033911,-151.0,0.00019178,2]
[378094607,1754727033921,-156.587,0.00019178,2]
[378094608,1754727033930,-158.41,0.00019178,2]
[378094609,1754727033940,-256.06898354,0.00019178,2]
[378094610,1754727033953,-878.94188727,0.00019178,2]
[378094611,1754727033964,-2186.80912919,0.00019178,2]
[378094612,1754727033974,-28.57565715,0.00019211,2]
[378094613,1754727033986,-124.10577785,0.00019211,2]
[378094614,1754727033996,-231.882192,0.00019211,2]
[378094615,1754727034006,-152.681435,0.00019212,2]
[378094616,1754727034015,-231.882192,0.00019212,2]
[378094617,1754727034027,-152.681435,0.00019485,2]
[378094618,1754727034036,-231.882192,0.00019485,2]
[378094619,1754727034046,-152.681435,0.00019486,2]
[378094620,1754727034058,-231.882192,0.00019486,2]
[378094621,1754727034068,-1557.65249929,0.00019615,2]
[378094622,1754727034077,-1388.10259155,0.0001962,2]
[378094623,1754727034087,-191.96,0.00019758,2]
[378094624,1754727034097,-247.249319,0.00019758,2]
[378094625,1754727034107,-152.681435,0.0001976,2]
[378094626,1754727034116,-231.882192,0.0001976,2]
[378094627,1754727034126,-152.681435,0.00019765,2]
[378094628,1754727034136,-231.882192,0.00019765,2]
[378094629,1754727034146,-194.0,0.0001987,2]
[378094630,1754727034156,-182.9,0.00019921,2]
[378094631,1754727034167,-261.43,0.00019936,2]
[378094632,1754727034176,-203.05858477,0.00019999,2]
[378094633,1754727034187,-224.36314625,0.00019999,2]
[378094634,1754727034196,-443.95479301,0.00019999,2]
[378094635,1754727034208,-2146.4367927,0.0002,2]
[378094636,1754727034220,-40165.36376001,0.0002,2]
[378094637,1754727034229,-10365.06494449,0.0002,2]
[378094638,1754727034240,-2267.35924504,0.0002,2]
[378094645,1754727038140,-308.588685,0.000189,2]
[378094646,1754727038151,-160.68373694,0.000189,2]
[378094647,1754727038160,-888.0,0.00019711,3]
[378094648,1754727038171,-5577.78304661,0.0002,2]
[378094650,1754727038569,-450.0,0.0002,2]
[378094651,1754727038581,-438.9054399,0.0002,2]
[378094652,1754727038592,-5219.19895737,0.0002,2]
[378094782,1754727040202,-621.04233477,0.0002,2]
[378094785,1754727040214,-993.59689508,0.0002,2]
[378094787,1754727040227,-2133.7314974,0.0002,2]
[378094789,1754727040236,-1898.63687155,0.0002,2]
[378094797,1754727040308,-723.8574001,0.0002,2]
[378094804,1754727040526,-525.16036174,0.0002,2]
[378095093,1754727043227,-752.67640618,0.0002,2]
[378095095,1754727043239,-1103.39668943,0.0002,2]
[378095098,1754727043251,-1584.23041008,0.0002,2]
[378095100,1754727043262,-1924.83607237,0.0002,2]
[378095103,1754727043271,-500.0,0.0002,2]
[378095105,1754727043280,-1000.0,0.0002,2]
[378095107,1754727043290,-256.451902,0.0002,2]
[378095109,1754727043299,-500.0,0.0002,2]
[378095111,1754727043308,-132.84418437,0.0002,2]
[378095114,1754727043327,-367.15581563,0.0002,2]
[378095116,1754727043336,-500.0,0.0002,2]
[378095118,1754727043345,-150.0,0.0002,2]
[378095120,1754727043354,-178.28008173,0.0002,2]
[378095130,1754727043440,-321.71991827,0.0002,2]
[378095131,1754727043449,-500.0,0.0002,2]
[378095132,1754727043458,-150.0,0.0002,2]
[378095133,1754727043473,-500.0,0.0002,2]
[378095134,1754727043482,-500.0,0.0002,2]
[378095135,1754727043491,-500.0,0.0002,2]
[378095136,1754727043501,-500.0,0.0002,2]
[378095137,1754727043511,-150.0,0.0002,2]
[378095138,1754727043528,-500.0,0.0002,2]
[378095139,1754727043543,-500.0,0.0002,2]
[378095140,1754727043552,-500.0,0.0002,2]
[378095141,1754727043562,-500.0,0.0002,2]
[378095143,1754727043571,-150.0,0.0002,2]
[378095145,1754727043583,-500.0,0.0002,2]
[378095147,1754727043592,-500.0,0.0002,2]
[378095149,1754727043602,-150.0,0.0002,2]
[378095151,1754727043611,-500.0,0.0002,2]
[378095153,1754727043620,-150.0,0.0002,2]
[378095155,1754727043630,-500.0,0.0002,2]
[378095157,1754727043640,-500.0,0.0002,2]
[378095159,1754727043649,-231.882192,0.00020034,2]
[378095161,1754727043659,-150.15,0.00020187,2]
[378095163,1754727043667,-888.0,0.00020211,3]
[378095165,1754727043677,-190.46,0.00020263,2]
[378095167,1754727043686,-500.0,0.00020263,2]
[378095169,1754727043695,-500.0,0.00020263,2]
[378095171,1754727043704,-500.0,0.00020263,2]
[378095173,1754727043714,-500.0,0.00020263,2]
[378095175,1754727043723,-500.0,0.00020263,2]
[378095177,1754727043733,-150.0,0.00020263,2]
[378095179,1754727043743,-150.0,0.00020263,2]
[378095181,1754727043752,-150.13659139,0.00020263,2]
[378095182,1754727043762,-111.40067188,0.00020263,2]
[378095462,1754727046363,-388.59932812,0.00020263,2]
[378095463,1754727046373,-205.71785235,0.00020263,2]
[378095466,1754727046382,-278.94384678,0.00020263,2]
[378095468,1754727046396,-221.05615322,0.00020263,2]
[378095470,1754727046405,-500.0,0.00020263,2]
[378095472,1754727046413,-150.0,0.00020263,2]
[378095474,1754727046424,-150.0,0.00020263,2]
[378095476,1754727046433,-150.0,0.00020263,2]
[378095478,1754727046442,-176.98593512,0.00020263,2]
[378095480,1754727046455,-323.01406488,0.00020263,2]
[378095482,1754727046465,-500.0,0.00020263,2]
[378095484,1754727046475,-500.0,0.00020263,2]
[378095486,1754727046484,-186.98593512,0.00020263,2]
[378095488,1754727046495,-3.4300072,0.00020263,2]
[378095490,1754727046505,-500.0,0.00020274,2]
[378095492,1754727046514,-500.0,0.00020274,2]
[378095495,1754727046524,-500.0,0.00020274,2]
[378095496,1754727046534,-150.0,0.00020274,2]
[378095498,1754727046543,-500.0,0.00020274,2]
[378095500,1754727046552,-500.0,0.00020274,2]
[378095502,1754727046562,-150.0,0.00020274,2]
[378095504,1754727046571,-500.0,0.00020274,2]
[378095506,1754727046580,-500.0,0.00020274,2]
[378095508,1754727046589,-500.0,0.00020274,2]
[378095511,1754727046599,-546.37517645,0.00020274,2]
[378095512,1754727046608,-150.0,0.00020274,2]
[378095514,1754727046618,-500.0,0.00020274,2]
[378095516,1754727046627,-587.40992981,0.00020274,2]
[378095519,1754727046637,-500.0,0.00020274,2]
[378095521,1754727046647,-500.0,0.00020274,2]
[378095523,1754727046656,-500.0,0.00020274,2]
[378095524,1754727046665,-500.0,0.00020274,2]
[378095525,1754727046677,-500.0,0.00020274,2]
[378095526,1754727046686,-500.0,0.00020274,2]
[378095527,1754727046695,-152.681435,0.00020308,2]
[378095528,1754727046704,-231.882192,0.00020308,2]
[378095529,1754727046713,-1557.65249929,0.00020336,2]
[378095530,1754727046722,-1388.10259155,0.0002034,2]
[378095531,1754727046731,-150.0,0.00020359,2]
[378095532,1754727046740,-500.0,0.00020359,2]
[378095533,1754727046749,-205.5495666,0.00020359,2]
[378095534,1754727046757,-150.0,0.00020359,2]
[378095535,1754727046767,-500.0,0.00020359,2]
[378095536,1754727046776,-500.0,0.00020359,2]
[378095537,1754727046785,-500.0,0.00020359,2]
[378095539,1754727046795,-500.0,0.00020359,2]
[378095541,1754727046805,-500.0,0.00020359,2]
[378095543,1754727046818,-500.0,0.00020359,2]
[378095545,1754727046828,-500.0,0.00020359,2]
[378095547,1754727046837,-150.0,0.00020359,2]
[378095549,1754727046847,-179.346088,0.00020359,2]
[378095551,1754727046857,-179.346088,0.00020359,2]
[378095553,1754727046867,-179.346088,0.000204,2]
[378095555,1754727046876,-179.346088,0.000204,2]
[378095557,1754727046888,-500.0,0.00020468,2]
[378095559,1754727046897,-250.0,0.00020468,2]
[378095561,1754727046906,-300.0,0.00020468,2]
[378095563,1754727046917,-500.0,0.00020537,2]
[378095565,1754727046927,-500.0,0.00020537,2]
[378095567,1754727046937,-500.0,0.00020537,2]
[378095569,1754727046946,-500.0,0.00020537,2]
[378095571,1754727046955,-500.0,0.00020537,2]
[378095573,1754727046965,-150.0,0.00020537,2]
[378095575,1754727046974,-150.45686372,0.00020537,2]
[378095577,1754727046983,-500.0,0.00020537,2]
[378095579,1754727046992,-500.0,0.00020537,2]
[378095581,1754727047002,-500.0,0.00020537,2]
[378095583,1754727047011,-150.0,0.00020537,2]
[378095585,1754727047020,-150.0,0.00020537,2]
[378095587,1754727047030,-500.0,0.00020537,2]
[378095590,1754727047039,-500.0,0.00020537,2]
[378095592,1754727047048,-500.0,0.00020537,2]
[378095594,1754727047057,-500.0,0.00020548,2]
[378095596,1754727047066,-500.0,0.00020548,2]
[378095598,1754727047076,-500.0,0.00020548,2]
[378095600,1754727047085,-150.56397087,0.00020548,2]
[378095602,1754727047094,-500.0,0.00020548,2]
[378095604,1754727047104,-500.0,0.00020548,2]
[378095606,1754727047113,-500.0,0.00020548,2]
[378095608,1754727047121,-500.0,0.00020548,2]
[378095610,1754727047131,-500.0,0.00020548,2]
[378095612,1754727047140,-151.12478328,0.00020548,2]
[378095613,1754727047149,-500.0,0.00020548,2]
[378095615,1754727047158,-500.0,0.00020548,2]
[378095617,1754727047168,-500.0,0.00020548,2]
[378095619,1754727047178,-500.0,0.00020548,2]
[378095621,1754727047187,-500.0,0.00020548,2]
[378095623,1754727047196,-500.0,0.00020548,2]
[378095625,1754727047206,-500.0,0.00020548,2]
[378095628,1754727047216,-555.775858,0.00020548,2]
[378095630,1754727047225,-555.775858,0.00020548,2]
[378095632,1754727047235,-1184.897645,0.00020548,2]
[378095634,1754727047243,-1184.897645,0.00020548,2]
[378095635,1754727047253,-172.020687,0.00020548,2]
[378095638,1754727047265,-172.020687,0.00020548,2]
[378095640,1754727047279,-151.0,0.00020548,2]
[378095643,1754727047297,-1000.0,0.00020553,2]
[378095645,1754727047309,-152.681435,0.00020582,2]
[378095648,1754727047323,-231.882192,0.00020582,2]
[378095650,1754727047337,-302.0,0.00020597,2]
[378095653,1754727047352,-420.0,0.000206,2]
[378095655,1754727047365,-150.0,0.00020633,2]
[378095658,1754727047379,-500.0,0.00020633,2]
[378095660,1754727047391,-189.99509286,0.00020633,2]
[378095662,1754727047402,-500.0,0.00020633,2]
[378095665,1754727047416,-500.0,0.00020633,2]
[378095667,1754727047429,-500.0,0.00020633,2]
[378095670,1754727047444,-500.0,0.00020633,2]
[378095672,1754727047458,-500.0,0.00020633,2]
[378095675,1754727047473,-500.0,0.00020633,2]
[378095677,1754727047485,-500.0,0.00020633,2]
[378095680,1754727047500,-150.0,0.00020633,2]
[378095682,1754727047513,-521.0,0.00020633,5]
[378095685,1754727047527,-319.18326575,0.00020678,2]
[378095687,1754727047541,-152.913696,0.00020685,2]
[378095690,1754727047555,-151.0,0.00020685,2]
[378095693,1754727047569,-473.077366,0.00020685,2]
[378095695,1754727047581,-473.077366,0.00020685,2]
[378095698,1754727047593,-193.95752,0.00020685,2]
[378095700,1754727047604,-193.95752,0.00020685,2]
[378095702,1754727047615,-151.0,0.00020685,2]
[378095705,1754727047630,-151.0,0.00020685,2]
[378095707,1754727047644,-151.0,0.00020685,2]
[378095710,1754727047655,-151.0,0.00020685,2]
[378095712,1754727047665,-151.0,0.00020685,2]
[378095714,1754727047678,-151.0,0.00020685,2]
[378095717,1754727047692,-810.81644,0.00020685,2]
[378095719,1754727047704,-810.81644,0.00020685,2]
[378095721,1754727047714,-562.965171,0.00020685,2]
[378095723,1754727047725,-562.965171,0.00020685,2]
[378095725,1754727047737,-151.0,0.00020685,2]
[378095728,1754727047749,-151.0,0.00020685,2]
[378095730,1754727047766,-151.0,0.00020685,2]
[378095733,1754727047778,-163.064743,0.00020685,2]
[378095735,1754727047789,-163.064743,0.00020685,2]
[378095737,1754727047801,-259.340991,0.00020685,2]
[378095739,1754727047817,-259.340991,0.00020685,2]
[378095742,1754727047829,-151.0,0.00020685,2]
[378095744,1754727047843,-151.0,0.00020685,2]
[378095746,1754727047856,-151.0,0.00020685,2]
[378095749,1754727047868,-179.346088,0.00020685,2]
[378095751,1754727047882,-179.346088,0.00020685,2]
[378095753,1754727047898,-151.0,0.0002069,2]
[378095755,1754727047910,-152.766004,0.0002069,2]
[378095758,1754727047922,-151.0,0.0002069,2]
[378095760,1754727047934,-407.107319,0.0002069,2]
[378095762,1754727047946,-407.107319,0.0002069,2]
[378095764,1754727047958,-151.0,0.0002069,2]
[378095767,1754727047970,-151.0,0.0002069,2]
[378095769,1754727047983,-151.0,0.0002069,2]
[378095771,1754727047995,-151.0,0.0002069,2]
[378095774,1754727048007,-217.590477,0.0002069,2]
[378095776,1754727048020,-313.107716,0.0002069,2]
[378095778,1754727048035,-217.590477,0.0002069,2]
[378095781,1754727048048,-313.107716,0.0002069,2]
[378095783,1754727048060,-224.139449,0.0002069,2]
[378095785,1754727048073,-224.139449,0.0002069,2]
[378095787,1754727048085,-151.0,0.0002069,2]
[378095790,1754727048097,-151.0,0.0002069,2]
[378095792,1754727048110,-151.0,0.0002069,2]
[378095794,1754727048122,-151.0,0.0002069,2]
[378095796,1754727048135,-151.0,0.0002069,2]
[378095799,1754727048148,-151.0,0.0002069,2]
[378095801,1754727048162,-1028.23982,0.0002069,2]
[378095804,1754727048176,-1028.23982,0.0002069,2]
[378095806,1754727048189,-151.0,0.0002069,2]
[378095808,1754727048201,-281.129566,0.0002069,2]
[378095811,1754727048214,-281.129566,0.0002069,2]
[378095813,1754727048229,-1255.022889,0.0002069,2]
[378095815,1754727048242,-1255.022889,0.0002069,2]
[378095818,1754727048255,-1364.541085,0.0002069,2]
[378095820,1754727048268,-1364.541085,0.0002069,2]
[378095822,1754727048281,-753.844528,0.0002069,2]
[378095825,1754727048293,-753.844528,0.0002069,2]
[378095827,1754727048306,-151.344271,0.0002069,2]
[378095829,1754727048320,-729.550471,0.0002069,2]
[378095832,1754727048334,-729.550471,0.0002069,2]
[378095834,1754727048346,-151.0,0.0002069,2]
[378095836,1754727048358,-511.790077,0.0002069,2]
[378095838,1754727048370,-511.790077,0.0002069,2]
[378095841,1754727048383,-151.0,0.0002069,2]
[378095843,1754727048396,-151.0,0.0002069,2]
[378095845,1754727048407,-151.0,0.0002069,2]
[378095848,1754727048419,-151.0,0.0002069,2]
[378095850,1754727048432,-151.0,0.0002069,2]
[378095852,1754727048444,-151.0,0.0002069,2]
[378095855,1754727048457,-151.0,0.0002069,2]
[378095857,1754727048470,-151.0,0.0002069,2]
[378095859,1754727048482,-154.523729,0.0002069,2]
[378095861,1754727048494,-154.523729,0.0002069,2]
[378095864,1754727048507,-464.776958,0.0002069,2]
[378095866,1754727048519,-464.776958,0.0002069,2]
[378095868,1754727048530,-555.775858,0.0002069,2]
[378095871,1754727048542,-555.775858,0.0002069,2]
[378095873,1754727048554,-1184.897645,0.0002069,2]
[378095875,1754727048566,-1184.897645,0.0002069,2]
[378095877,1754727048578,-172.020687,0.0002069,2]
[378095880,1754727048590,-172.020687,0.0002069,2]
[378095882,1754727048602,-151.0,0.0002069,2]
[378095884,1754727048614,-1680.0,0.00020697,2]
[378095887,1754727048626,-151.0,0.00020797,2]
[378095889,1754727048637,-151.0,0.00020797,2]
[378095891,1754727048649,-810.81644,0.00020797,2]
[378095893,1754727048661,-810.81644,0.00020797,2]
[378095896,1754727048674,-151.0,0.00020797,2]
[378095898,1754727048686,-151.0,0.00020797,2]
[378095900,1754727048699,-151.0,0.00020797,2]
[378095903,1754727048711,-151.0,0.00020797,2]
[378095905,1754727048723,-179.346088,0.00020797,2]
[378095907,1754727048735,-179.346088,0.00020797,2]
[378095909,1754727048747,-500.0,0.00020811,2]
[378095912,1754727048759,-500.0,0.00020811,2]
[378095914,1754727048771,-500.0,0.00020811,2]
[378095916,1754727048784,-500.0,0.00020811,2]
[378095919,1754727048796,-500.0,0.00020811,2]
[378095921,1754727048811,-150.0,0.00020811,2]
[378095923,1754727048824,-500.0,0.00020811,2]
[378095925,1754727048836,-539.13021413,0.00020811,2]
[378095928,1754727048848,-500.0,0.00020811,2]
[378095930,1754727048860,-297.501174,0.00020811,2]
[378095932,1754727048873,-150.0,0.00020811,2]
[378095934,1754727048886,-501.99858289,0.00020811,2]
[378095937,1754727048900,-500.0,0.00020811,2]
[378095939,1754727048912,-500.0,0.00020811,2]
[378095941,1754727048925,-500.0,0.00020822,2]
[378095944,1754727048937,-600.0,0.00020822,2]
[378095946,1754727048949,-500.0,0.00020822,2]
[378095948,1754727048961,-500.0,0.00020822,2]
[378095950,1754727048973,-500.0,0.00020822,2]
[378095953,1754727048985,-500.0,0.00020822,2]
[378095955,1754727048996,-500.0,0.00020822,2]
[378095957,1754727049009,-500.0,0.00020822,2]
[378095959,1754727049020,-500.0,0.00020822,2]
[378095962,1754727049032,-500.0,0.00020822,2]
[378095964,1754727049045,-150.0,0.00020822,2]
[378095966,1754727049056,-500.0,0.00020822,2]
[378095969,1754727049069,-488.03911442,0.00020822,2]
[378095971,1754727049081,-152.681435,0.00020856,2]
[378095973,1754727049094,-231.882192,0.00020856,2]
[378095975,1754727049107,-168.0,0.00020893,2]
[378095978,1754727049130,-150.0,0.00020907,2]
[378095980,1754727049150,-500.0,0.00020907,2]
[378095982,1754727049165,-500.0,0.00020907,2]
[378095984,1754727049182,-500.0,0.00020907,2]
[378095986,1754727049204,-308.21645034,0.00020907,2]
[378095989,1754727049224,-500.0,0.00020907,2]
[378095991,1754727049239,-500.0,0.00020907,2]
[378095993,1754727049253,-500.0,0.00020907,2]
[378095995,1754727049264,-500.0,0.00020907,2]
[378095998,1754727049277,-150.0,0.00020907,2]
[378096000,1754727049289,-562.965171,0.00020958,2]
[378096002,1754727049301,-562.965171,0.00020958,2]
[378096004,1754727049313,-151.0,0.00020958,2]
[378096007,1754727049325,-151.0,0.00020958,2]
[378096009,1754727049337,-163.064743,0.00020958,2]
[378096011,1754727049348,-163.064743,0.00020958,2]
[378096013,1754727049360,-259.340991,0.00020958,2]
[378096016,1754727049372,-259.340991,0.00020958,2]